Workbook

Sheet MEXICO
A1: fecha | B1: t | C1: CONFIRMADOS MEXICO | D1: FACTOR DIARIO | E1: FACTOR PROMEDIO | F1: INCREMENTO DIARIO | G1: Tasa de Crecimiento | H1: Ro = 2.5 | I1: CONFIRMADOS LOGARITMICO | J1: FACTOR DIARIO LOGARITMICO | K1: INCREMENTO LOGARITMICO
A2: 11 | B2: 1 | C2: 11 | D2: 1 | F2: 1 | H2: =C2*2.5 -> 27.5 | I2: =LN(C2) -> 2.397895273 | J2: =LN(C2) -> 2.397895273 | K2: =LN(F2) -> 0
A3: 12 | B3: 2 | C3: 12 | D3: =C3/C2 -> 1.090909091 | E3: =AVERAGE(D2:D3) -> 1.045454545 | F3: =C3-C2 -> 1 | G3: 1 | H3: 30 | I3: 2.48490665 | J3: =LN(C3) -> 2.48490665 | K3: =LN(F3) -> 0
A4: 13 | B4: 3 | C4: 26 | D4: =C4/C3 -> 2.166666667 | E4: =AVERAGE(D2:D4) -> 1.419191919 | F4: 14 | G4: =F4/F3 -> 14 | H4: 65 | I4: 3.258096538 | J4: 3.258096538 | K4: 2.63905733
A5: 14 | B5: 4 | C5: 41 | D5: 1.576923077 | E5: =AVERAGE(D2:D5) -> 1.458624709 | F5: 15 | G5: 1.071428571 | H5: 102.5 | I5: 3.713572067 | J5: 3.713572067 | K5: 2.708050201
A6: 15 | B6: 5 | C6: 53 | D6: 1.292682927 | E6: =AVERAGE(D2:D6) -> 1.425436352 | F6: 12 | G6: 0.8 | H6: 132.5 | I6: 3.970291914 | J6: 3.970291914 | K6: 2.48490665
A7: 16 | B7: 6 | C7: 82 | D7: 1.547169811 | E7: =AVERAGE(D2:D7) -> 1.445725262 | F7: 29 | G7: 2.416666667 | H7: 205 | I7: 4.406719247 | J7: 4.406719247 | K7: 3.36729583
A8: 17 | B8: 7 | C8: 93 | D8: 1.134146341 | E8: =AVERAGE(D2:D8) -> 1.401213988 | F8: 11 | G8: 0.3793103448 | H8: 232.5 | I8: 4.532599493 | J8: 4.532599493 | K8: 2.397895273
A9: 18 | B9: 8 | C9: 118 | D9: 1.268817204 | E9: =AVERAGE(D2:D9) -> 1.38466439 | F9: 25 | G9: 2.272727273 | H9: 295 | I9: 4.770684624 | J9: 4.770684624 | K9: 3.218875825
A10: 19 | B10: 9 | C10: 164 | D10: 1.389830508 | E10: =AVERAGE(D2:D10) -> 1.385238403 | F10: 46 | G10: 1.84 | H10: 410 | I10: 5.099866428 | J10: 5.099866428 | K10: 3.828641396
A11: 20 | B11: 10 | C11: 203 | D11: 1.237804878 | E11: =AVERAGE(D2:D11) -> 1.37049505 | F11: 39 | G11: 0.847826087 | H11: 507.5 | I11: 5.313205979 | J11: 5.313205979 | K11: 3.663561646
A12: 21 | B12: 11 | C12: 251 | D12: 1.236453202 | E12: =AVERAGE(D2:D12) -> 1.358309428 | F12: 48 | G12: 1.230769231 | H12: 627.5 | I12: 5.525452939 | J12: 5.525452939 | K12: 3.871201011
A13: 22 | B13: 12 | C13: 316 | D13: 1.258964143 | E13: =AVERAGE(D2:D13) -> 1.350030654 | F13: 65 | G13: 1.354166667 | H13: 790 | I13: 5.755742214 | J13: 5.755742214 | K13: 4.17438727
A14: 23 | B14: 13 | C14: 367 | D14: 1.161392405 | E14: =AVERAGE(D2:D14) -> 1.33552002 | F14: 51 | G14: 0.7846153846 | H14: 917.5 | I14: 5.905361848 | J14: 5.905361848 | K14: 3.931825633
A15: 24 | B15: 14 | C15: 405 | D15: 1.103542234 | E15: =AVERAGE(D2:D15) -> 1.318950178 | F15: 38 | G15: 0.7450980392 | H15: 1012.5 | I15: 6.003887067 | J15: 6.003887067 | K15: 3.63758616
A16: 25 | B16: 15 | C16: 475 | D16: 1.172839506 | E16: =AVERAGE(D2:D16) -> 1.309209466 | F16: 70 | G16: 1.842105263 | H16: 1187.5 | I16: 6.163314804 | J16: 6.163314804 | K16: 4.248495242
A17: 26 | B17: 16 | C17: 585 | D17: 1.231578947 | E17: =AVERAGE(D2:D17) -> 1.304357559 | F17: 110 | G17: 1.571428571 | H17: 1462.5 | I17: 6.371611847 | J17: 6.371611847 | K17: 4.700480366
A18: 27 | B18: 17 | C18: 717 | D18: 1.225641026 | E18: =AVERAGE(D2:D18) -> 1.299727175 | F18: 132 | G18: 1.2 | H18: 1792.5 | I18: 6.575075841 | J18: 6.575075841 | K18: 4.882801923
A19: 28 | B19: 18 | C19: 848 | D19: 1.182705718 | E19: =AVERAGE(D2:D19) -> 1.293225983 | F19: 131 | G19: 0.9924242424 | H19: 2120 | I19: 6.742880636 | J19: 6.742880636 | K19: 4.875197323
A20: 29 | B20: 19 | C20: 993 | D20: 1.170990566 | E20: =AVERAGE(D3:D20) -> 1.302725459 | F20: 145 | G20: 1.106870229 | H20: 2482.5 | I20: 6.900730664 | J20: 6.900730664 | K20: 4.976733742
A21: 30 | B21: 20 | C21: 1094 | D21: 1.101711984 | E21: =AVERAGE(D3:D21) -> 1.292145802 | F21: 101 | G21: 0.6965517241 | H21: 2735 | I21: 6.997595983 | J21: 6.997595983 | K21: 4.615120517
A22: 31 | B22: 21 | C22: 1215 | D22: 1.110603291 | E22: =AVERAGE(D3:D22) -> 1.283068676 | F22: 121 | G22: 1.198019802 | H22: 3037.5 | I22: 7.102499356 | J22: 7.102499356 | K22: 4.795790546
A23: 1 | B23: 22 | C23: 1378 | D23: 1.134156379 | E23: =AVERAGE(D3:D23) -> 1.275977615 | F23: 163 | G23: 1.347107438 | H23: 3445 | I23: 7.228388452 | J23: 7.228388452 | K23: 5.093750201
A24: 2 | B24: 23
A25: 3 | B25: 24
A26: 4 | B26: 25
A27: 5 | B27: 26
A28: 6 | B28: 27 | H28: 31
A29: 7 | B29: 28 | H29: 0.03655660377
A30: 8 | B30: 29
A31: 9 | B31: 30
A32: 10 | B32: 31
A33: 11 | B33: 32
A34: 12 | B34: 33
A35: 13 | B35: 34
A36: 14 | B36: 35
A37: 15 | B37: 36
A38: 16 | B38: 37
A39: 17 | B39: 38
A40: 18 | B40: 39
A41: 19 | B41: 40
A42: 20 | B42: 41
A43: 21 | B43: 42

Sheet MICHOACA
A1: FECHA | B1: t | C1: confirmados MICHOACAN | D1: t | E1: confirmados MICHOACAN Logartimo | F1: Tasa de Crecimiento | G1: INCREMENTO DIARIO | H1: Muertes
A2: 21 | B2: 1 | C2: 4 | D2: 1 | E2: =LN(C2) -> 1.386294361 | F2: 1
A3: 22 | B3: 2 | C3: 8 | D3: 2 | E3: =LN(C3) -> 2.079441542 | F3: =C3/C2 -> 2 | G3: =C3-C2 -> 4
A4: 23 | B4: 3 | C4: 10 | D4: 3 | E4: 2.302585093 | F4: =C4/C3 -> 1.25 | G4: =C4-C3 -> 2
A5: 24 | B5: 4 | C5: 11 | D5: 4 | E5: 2.397895273 | F5: 1.1 | G5: 1
A6: 25 | B6: 5 | C6: 12 | D6: 5 | E6: 2.48490665 | F6: 1.090909091 | G6: 1
A7: 26 | B7: 6 | C7: 17 | D7: 6 | E7: 2.833213344 | F7: 1.416666667 | G7: 5 | H7: 1
A8: 27 | B8: 7 | C8: 18 | D8: 7 | E8: 2.890371758 | F8: 1.058823529 | G8: 1
A9: 28 | B9: 8 | C9: =C8*F8 -> 19.05882353 | D9: 8 | E9: 2.947530172 | F9: 1.058823529 | G9: 1.058823529
A10: 29 | B10: 9 | C10: 22 | D10: 9 | E10: 3.091042453 | F10: 1.154320988 | G10: 2.941176471 | H10: 1
A11: 30 | B11: 10 | C11: 22 | D11: 10 | E11: 3.091042453 | F11: 1 | G11: 0
A12: 31 | B12: 11 | C12: 23 | D12: 11 | E12: 3.135494216 | F12: 1.045454545 | G12: 1 | H12: 1
A13: 1 | B13: 12 | C13: 25 | D13: 12 | E13: 3.218875825 | F13: 1.086956522 | G13: 2
A14: 2 | B14: 13 | C14: 27.17391304 | D14: 13 | F14: =F13 -> 1.086956522
A15: 3 | B15: 14 | C15: 29.536862 | D15: 14 | F15: 1.086956522
A16: 4 | B16: 15 | C16: 32.10528479 | D16: 15 | F16: 1.086956522
A17: 5 | B17: 16 | C17: 34.89704868 | D17: 16 | F17: 1.086956522
A18: 6 | B18: 17 | C18: 37.93157465 | D18: 17 | F18: 1.086956522
A19: 7 | B19: 18 | C19: 41.22997245 | D19: 18 | F19: 1.086956522
A20: 8 | B20: 19 | C20: 44.81518745 | D20: 19 | F20: 1.086956522
A21: 9 | B21: 20 | C21: 48.71216027 | D21: 20 | F21: 1.086956522
A22: 10 | B22: 21 | C22: 52.94800029 | D22: 21 | F22: 1.086956522
A23: 11 | B23: 22 | C23: 57.55217423 | D23: 22 | F23: 1.086956522
A24: 12 | B24: 23 | C24: 62.55671112 | D24: 23 | F24: 1.086956522
A25: 13 | B25: 24 | C25: 67.99642513 | D25: 24 | F25: 1.086956522
A26: 14 | B26: 25 | C26: 73.90915775 | D26: 25 | F26: 1.086956522
A27: 15 | B27: 26 | C27: 80.33604103 | D27: 26 | F27: 1.086956522
A28: 16 | B28: 27 | C28: 87.32178373 | D28: 27 | F28: 1.086956522
A29: 17 | B29: 28 | C29: 94.91498231 | D29: 28 | F29: 1.086956522
A30: 18 | B30: 29 | C30: 103.168459 | D30: 29 | F30: 1.086956522
A31: 19 | B31: 30 | C31: 112.1396294 | D31: 30 | F31: 1.086956522
A32: 20 | B32: 31 | C32: 121.8909015 | D32: 31 | F32: 1.086956522
A33: 21 | B33: 32 | C33: 132.4901103 | D33: 32 | F33: 1.086956522
A34: 22 | B34: 33 | C34: 144.0109895 | D34: 33 | F34: 1.086956522
A35: 23 | B35: 34 | C35: 156.5336842 | D35: 34 | F35: 1.086956522
A36: 24 | B36: 35 | C36: 170.1453089 | D36: 35 | F36: 1.086956522
A37: 25 | B37: 36 | C37: 184.9405532 | D37: 36 | F37: 1.086956522
A38: 26 | B38: 37 | C38: 201.0223404 | D38: 37 | F38: 1.086956522
A39: 27 | B39: 38 | C39: 218.502544 | D39: 38 | F39: 1.086956522
A40: 28 | B40: 39 | C40: 237.5027652 | D40: 39 | F40: 1.086956522
A41: 29 | B41: 40 | C41: 258.1551795 | D41: 40 | F41: 1.086956522
A42: 30 | B42: 41 | C42: 280.603456 | D42: 41 | F42: 1.086956522
